Cogmind - Beta 10.2 @@@ ROGUE MODE // 2021.06.19 @ 14:23:34 Player: puncake Result: Destroyed by S-27 Virus with Autogun Performance ------------- Evolutions (3) 1500 Regions Visited (5) 1000 Robots Destroyed (76) 380 Value Destroyed (2810) 2810 Prototype IDs (1) 20 Alien Tech Used (0) 0 Bonus (1078) 1078 TOTAL SCORE: 6788 Bonus ------- High Alert Combat Kills 147 Follower Combat Kills 231 Entered Garrisons 200 Used RIF Installer 500 Cogmind --------- Core Integrity 0/700 Matter 166/300 Energy 65/100 System Corruption 0% Temperature Cool (0) Movement Core (50) Location -7/Factory Parts ------- > --- POWER (1) -------- (None) > --- PROPULSION (4) --- (None) > --- UTILITY (6) ------ Relay Coupler [NC] (18) > --- WEAPON (2) ------- (None) > --- INVENTORY (4) ---- High-capacity Storage Unit Relay Coupler [Grunt] (19) Relay Coupler [Hunter] (12) Remote Datajack Peak State ------------ > --- POWER ------------ Reinforced Ion Engine > --- PROPULSION ------- Medium Treads Carbon-fiber Leg Carbon-fiber Leg Carbon-fiber Leg > --- UTILITY ---------- Improved Cooling System High-capacity Storage Unit Improved Maneuvering Thrusters Relay Coupler [NC] Relay Coupler [Grunt] Relay Coupler [Sentry] > --- WEAPON ----------- Heavy Ion Cannon Gauss Rifle > --- INVENTORY -------- Reinforced Ion Engine Light Nuclear Core Light Nuclear Core Light Nuclear Core Relay Coupler [Grunt] Relay Coupler [Hunter] Heavy Ion Cannon Gauss Cannon Remote Datajack Segregator Segregator [Rating: 45] Favorites ----------- Power Improved Ion Engine Engine Improved Ion Engine Power Core Light Nuclear Core Propulsion Carbon-fiber Leg Treads Improved Treads Leg Carbon-fiber Leg Utility Medium Storage Unit Device Improved Sensor Array Storage Medium Storage Unit Hackware System Shield Weapon Heavy Ion Cannon Energy Gun Small Laser Energy Cannon Heavy Ion Cannon Ballistic Gun Shotgun Ballistic Cannon Assault Cannon Launcher Grenade Launcher Special Weapon Remote Datajack Slashing Weapon Segregator Special Melee Weapon Improved Datajack Build | -11 -10 -9 -8 -8 -7 ------- Run | Scr Mat Mat Mat Gar Fac Slots Evolved 6 | . . 2 2 . 2 Power . | . . . . . . Propulsion 2 | . . 1 1 . . Utility 4 | . . 1 1 . 2 Weapon . | . . . . . . Parts Attached 91 | 6 2 34 10 18 21 Power 14 | 1 . 4 1 3 5 Engine 8 | 1 . 4 . 2 1 Core 6 | . . . 1 1 4 Reactor . | . . . . . . Propulsion 26 | 2 . 11 4 6 3 Treads 8 | . . 2 2 3 1 Leg 18 | 2 . 9 2 3 2 Wheel . | . . . . . . Hover . | . . . . . . Flight . | . . . . . . Utility 16 | 1 2 5 1 3 4 Device 7 | . . 4 . 2 1 Storage 4 | 1 1 1 . . 1 Processor . | . . . . . . Hackware 5 | . 1 . 1 1 2 Protection . | . . . . . . Artifact . | . . . . . . Weapon 35 | 2 . 14 4 6 9 Energy Gun 12 | . . 8 2 2 . Energy Cannon 4 | . . . . 2 2 Ballistic Gun 8 | 2 . 3 1 . 2 Ballistic Cannon 4 | . . 1 1 1 1 Launcher 2 | . . 2 . . . Special Weapon 2 | . . . . . 2 Impact Weapon . | . . . . . . Slashing Weapon 2 | . . . . . 2 Piercing Weapon . | . . . . . . Special Melee Weapon 1 | . . . . 1 . Unidentified Prototypes 1 | . . . 1 . . Parts Lost 45 | . . 13 1 10 21 Power 10 | . . 2 1 2 5 Propulsion 12 | . . 4 . 3 5 Utility 8 | . . 2 . 2 4 Weapon 15 | . . 5 . 3 7 Highest Loss Streak 19 | . . 10 1 4 19 Average Slot Usage (%) 96 | . 94 94 100 97 94 Engine 8 | . 14 10 7 5 6 Treads 12 | . . 7 18 15 10 Leg 20 | . 28 24 18 18 16 Device 16 | . . 17 18 21 14 Storage 9 | . 14 11 9 9 6 Hackware 9 | . 9 4 9 5 22 Energy Gun 4 | . . 8 2 7 . Energy Cannon 3 | . . . . 6 8 Ballistic Gun 5 | . 28 7 7 . 1 Ballistic Cannon 2 | . . 1 7 1 . Special Melee Weapon 1 | . . . . 2 2 Naked Turns . | . . . . . . Heaviest Build 60 | 10 14 24 26 37 60 Greatest Support 51 | 20 20 51 28 42 50 Greatest Overweight (x) 2 | 2 . 1 1 1 1 Average Overweight (x) . | . . . . . . Largest Inventory Capacity 12 | 6 8 8 8 8 12 Average Capacity 8 | 5 7 8 8 8 9 Most Carried 11 | 6 8 8 8 8 11 Average Carried 7 | 4 7 7 7 7 8 Final Capacity 8 | 6 8 8 8 8 4 Final Carried 8 | 6 8 8 8 8 4 Class Distribution -------------------- 65% | Mutant 17% | Commander-Mutant 14% | Scavenger-Mutant Dominant Class ---------------- Mutant | -10/Materials Scavenger-Mutant | -9/Materials Mutant | -8/Materials Commander-Mutant | -8/Garrison Mutant | -7/Factory Resources | -11 -10 -9 -8 -8 -7 ----------- Run | Scr Mat Mat Mat Gar Fac Matter Collected 1717 | 237 14 422 556 325 163 Remotely . | . . . . . . Salvage Created 2683 | . 14 442 1131 575 521 Parts 146 | . 4 35 51 35 21 Haulers Intercepted 2 | . . . 2 . . Recyclers Shooed 2 | . . 1 1 . . Parts Field Recycled . | . . . . . . Retrieved Matter . | . . . . . . Parts Self-Destructed . | . . . . . . Prevented . | . . . . . . Kills | -11 -10 -9 -8 -8 -7 ------- Run | Scr Mat Mat Mat Gar Fac Combat Hostiles Destroyed 64 | . . 15 15 21 13 Guns 31 | . . 6 11 14 . Cannons 23 | . . . 4 7 12 AOE 8 | . . 8 . . . Classes Destroyed 14 | . 1 7 4 1 1 Worker 2 | . . 1 1 . . Builder 2 | . . 1 1 . . Tunneler 1 | . . 1 . . . Hauler 2 | . . . 2 . . Recycler 3 | . . . 3 . . Operator 1 | . 1 . . . . Watcher 1 | . . 1 . . . Swarmer 21 | . . 3 . 14 4 Grunt 24 | . . 8 8 3 5 Brawler 4 | . . . 1 2 1 Duelist 1 | . . . . 1 . Sentry 10 | . . 4 5 1 . Hunter 2 | . . . 1 . 1 Programmer 2 | . . . . . 2 Best Kill Streak 9 | . 1 4 9 4 4 Combat Bots Only 7 | . . 4 7 4 4 Max Kills in Single Turn 2 | . 1 2 2 2 1 Gunslinging 1 | . . . . 1 . Exploded 2 | . . 2 . . . Melee . | . . . . . . Uniques/NPCs Destroyed . | . . . . . . Combat | -11 -10 -9 -8 -8 -7 -------- Run | Scr Mat Mat Mat Gar Fac Damage Taken 5758 | . . 1538 903 916 2401 Core 1332 | . . 283 172 171 706 Absorbed by Shields . | . . . . . . Core Remaining (%) 66 | 100 100 29 . 37 . Volleys Fired 231 | . 1 66 55 55 54 Largest 2 | . 2 2 2 2 2 Hottest 130 | . 40 106 100 130 130 Shots Fired 390 | . 2 101 107 108 72 Gun 245 | . 2 84 77 74 8 Cannon 117 | . . . 30 34 53 Launcher 17 | . . 17 . . . Special 11 | . . . . . 11 Kinetic 163 | . 2 31 81 28 21 Thermal 121 | . . 25 1 55 40 Explosive 17 | . . 17 . . . Electromagnetic 78 | . . 28 25 25 . Robot Hit Streak 16 | . 1 8 13 16 8 Robot Miss Streak 5 | . . 3 4 5 4 Penetration Max 1 | . . . . . 1 Secondary Targets 7 | . . 1 3 3 . Max Gunslinging Chain 1 | . . 1 1 1 . Shots Hit Robots 268 | . 1 73 75 65 54 Core Hits 130 | . 1 41 40 27 21 Critical Hits 4 | . . . 1 . 3 Critical Kills 3 | . . . . . 3 Critical Parts Destroyed 1 | . . . 1 . . Melee Attacks 9 | . . . . . 9 Thermal 7 | . . . . . 7 Impact . | . . . . . . Slashing . | . . . . . . Piercing . | . . . . . . Sneak Attacks 2 | . . . . . 2 Combat Hostiles . | . . . . . . Follow-up Attacks . | . . . . . . Damage Inflicted 5511 | . 15 1625 1336 1269 1266 Guns 2693 | . 15 719 906 897 156 Cannons 1912 | . . . 430 372 1110 Explosions 906 | . . 906 . . . Melee . | . . . . . . Ramming . | . . . . . . Kinetic 2141 | . 15 227 1051 345 503 Thermal 1842 | . . 333 . 746 763 Explosive 743 | . . 743 . . . Electromagnetic 785 | . . 322 285 178 . Impact . | . . . . . . Slashing . | . . . . . . Piercing . | . . . . . . Highest Corruption 8 | . 2 . 2 8 . Average Corruption 4 | . 2 . 2 5 . Corruption Purged . | . . . . . . Effects 30 | . . . 6 24 . Message Errors 5 | . . . . 5 . Matter Fused 5 | . . . . 5 . Heat Flow Errors 6 | . . . 2 4 . Energy Discharges 6 | . . . 1 5 . Data Loss (minor) 3 | . . . . 3 . Misfires 1 | . . . . 1 . Targeting Errors 4 | . . . 3 1 . Overload Shots . | . . . . . . Overflow Damage 64 | . . 29 . 21 14 Projectiles 35 | . . . . 21 14 Explosions 29 | . . 29 . . . Melee . | . . . . . . Knockbacks 11 | . . . 3 1 7 Impact . | . . . . . . Kinetic 8 | . . . 3 1 4 Secondary 3 | . . . . . 3 Self-Inflicted Damage 180 | . . 180 . . . Shots 9 | . . 9 . . . Rammed . | . . . . . . Targets Rammed . | . . . . . . Kicked . | . . . . . . Crushed . | . . . . . . Highest Temperature 270 | . . 82 186 227 270 Average Temperature 48 | . . 15 71 76 53 Received Heat Transfer 1578 | . . 507 369 144 558 Effects 1 | . . . . . 1 Energy Bleed 1 | . . . . . 1 Siege Activations . | . . . . . . Robots Corrupted 1 | . . 1 . . . Combat Hostiles 1 | . . 1 . . . Parts Fried 2 | . . 2 . . . Impact Corruptions . | . . . . . . Robots Melted 1 | . . . . . 1 Combat Hostiles 1 | . . . . . 1 Parts Melted 10 | . . . . 8 2 Heat Transferred 3017 | . . 537 . 1480 1000 Parts Sabotaged . | . . . . . . Parts Stolen . | . . . . . . Parts Stripped . | . . . . . . Power Chain Reactions . | . . . . . . Missiles Intercepted . | . . . . . . Alert | -11 -10 -9 -8 -8 -7 ------- Run | Scr Mat Mat Mat Gar Fac Peak Influence 830 | . 14 307 261 830 622 Initial 435 | . . 5 . 154 435 Average 257 | . 12 74 113 559 424 Maximum Alert Level 3 | . . 1 1 3 2 Low Security (%) 49 | 100 100 89 74 4 . Level 1 20 | . . 10 25 16 38 Level 2 25 | . . . . 61 61 Level 3 3 | . . . . 17 . Level 4 . | . . . . . . Level 5 . | . . . . . . High Security . | . . . . . . Max Security . | . . . . . . Squads Dispatched 10 | . . . 5 . 5 Investigation . | . . . . . . Extermination 2 | . . . . . 2 Reinforcement 3 | . . . 2 . 1 Assault 2 | . . . . . 2 Garrison 3 | . . . 3 . . Intercept . | . . . . . . Construction Impeded . | . . . . . . Haulers Reinforced . | . . . . . . Stealth | -11 -10 -9 -8 -8 -7 --------- Run | Scr Mat Mat Mat Gar Fac Distress Signals 4 | . . . 4 . . Communications Jammed . | . . . . . . Distress Signals . | . . . . . . Times Spotted 109 | . 2 25 24 31 27 Peak Tracking Total 13 | . 1 8 9 5 13 Tactical Retreats 10 | . . . 3 6 1 Traps | -11 -10 -9 -8 -8 -7 ------- Run | Scr Mat Mat Mat Gar Fac Traps Triggered 7 | . 1 3 1 2 . Indirectly . | . . . . . . Trap Hack Attempts . | . . . . . . Triggered . | . . . . . . Disarmed . | . . . . . . Reprogrammed . | . . . . . . Reused . | . . . . . . Traps Extracted . | . . . . . . Installed . | . . . . . . Triggered 1 | . . 1 . . . Machines | -11 -10 -9 -8 -8 -7 ---------- Run | Scr Mat Mat Mat Gar Fac Machines Disabled 5 | . . 2 . 2 1 Max in Single Turn 1 | . . 1 . 1 1 Garrison Access 1 | . . . . . 1 Garrison Relay 2 | . . . . 2 . Machines Sabotaged . | . . . . . . Garrisons Compromised . | . . . . . . Overloaded Fab Kills . | . . . . . . Fab Network Shutdowns . | . . . . . . Hacking | -11 -10 -9 -8 -8 -7 --------- Run | Scr Mat Mat Mat Gar Fac Machines Accessed 11 | . 3 2 4 . 2 Terminals 8 | . 3 2 2 . 1 Fabricators . | . . . . . . Repair Stations . | . . . . . . Recycling Units 1 | . . . 1 . . Scanalyzers . | . . . . . . Garrison Access 2 | . . . 1 . 1 Total Hacks 21 | . 5 3 9 . 4 Successful 7 | . 2 1 3 . 1 Failed 14 | . 3 2 6 . 3 Catastrophic 3 | . . . 1 . 2 Database Lockouts . | . . . . . . Manual 11 | . 2 2 4 . 3 Terminals 15 | . 5 3 4 . 3 Fabricators . | . . . . . . Repair Stations . | . . . . . . Recycling Units 3 | . . . 3 . . Scanalyzers . | . . . . . . Garrison Access 3 | . . . 2 . 1 Terminal Hacks 4 | . 2 1 1 . . Level Access Points 1 | . 1 . . . . Unreport Threat 1 | . . 1 . . . Zone Layout 2 | . 1 . 1 . . Fabricator Hacks . | . . . . . . Repair Station Hacks . | . . . . . . Recycling Unit Hacks 1 | . . . 1 . . Retrieve Components 1 | . . . 1 . . Scanalyzer . | . . . . . . Garrison Access Hacks 2 | . . . 1 . 1 Unlock Access 1 | . . . 1 . . Coupler Status 1 | . . . . . 1 Unauthorized Hacks . | . . . . . . Terminals . | . . . . . . Fabricators . | . . . . . . Repair Stations . | . . . . . . Recycling Units . | . . . . . . Scanalyzers . | . . . . . . Garrison Access . | . . . . . . Data Cores Recovered 1 | . 1 . . . . Used . | . . . . . . Hacking Detections 7 | . 2 2 1 . 2 Full Trace Events . | . . . . . . Feedback Events . | . . . . . . Feedback Blocked . | . . . . . . Robot Schematics Acquired . | . . . . . . Robots Built . | . . . . . . Matter . | . . . . . . Time . | . . . . . . Total Robot Build Rating . | . . . . . . Part Schematics Acquired . | . . . . . . Parts Built . | . . . . . . Matter . | . . . . . . Time . | . . . . . . Total Part Build Rating . | . . . . . . Parts Repaired . | . . . . . . Time . | . . . . . . Parts Recycled . | . . . . . . Recycled Matter . | . . . . . . Retrieved Matter . | . . . . . . Retrieved Components 3 | . . . 3 . . Parts Scanalyzed . | . . . . . . Part Schematics Acquired . | . . . . . . Parts Damaged . | . . . . . . Bothacking | -11 -10 -9 -8 -8 -7 ------------ Run | Scr Mat Mat Mat Gar Fac Used RIF Installer 1 | . . . . 1 . Robots Hacked 5 | . . . . . 5 Non-combat 2 | . . . . . 2 Combat 3 | . . . . . 3 Robot Hacks Applied 5 | . . . . . 5 drop_inventory 1 | . . . . . 1 spike_heat 2 | . . . . . 2 overload_power 2 | . . . . . 2 Relay Couplers Released 8 | . . . . 6 2 Machine Destruction 8 | . . . . 6 2 Attached 3 | . . . . 1 2 Robots Rewired 9 | . . . . 9 . Allies Hacked 1 | . . . . . 1 Hacks Repelled . | . . . . . . Allies | -11 -10 -9 -8 -8 -7 -------- Run | Scr Mat Mat Mat Gar Fac Total Allies 9 | . . . . 9 . Largest Group 6 | . . . . 6 4 Highest-Rated Group 93 | . . . . 93 62 Highest-Rated Ally 21 | . . . . 21 21 Total Orders . | . . . . . . Ally Attacks 51 | . . . . 41 10 Total Damage 1072 | . . . . 758 314 Kills 7 | . . . . 6 1 Allies Corrupted . | . . . . . . Allies Melted . | . . . . . . Intel | -11 -10 -9 -8 -8 -7 ------- Run | Scr Mat Mat Mat Gar Fac Robot Analysis Total . | . . . . . . Derelict Logs Recovered . | . . . . . . Drone Launches . | . . . . . . Drone Recoveries . | . . . . . . Exploration | -11 -10 -9 -8 -8 -7 ------------- Run | Scr Mat Mat Mat Gar Fac Turns Passed 4551 | 67 198 1241 1124 988 933 Spaces Moved 1914 | 54 159 454 411 467 369 Core 25 | 22 . . . . 3 Treads 484 | . . . . 227 257 Legs 1405 | 32 159 454 411 240 109 Wheels . | . . . . . . Hover . | . . . . . . Flight . | . . . . . . Fastest Speed 50 | 50 120 120 120 120 50 Average Speed 135 | 93 120 133 130 137 150 Slowest Speed 180 | 150 120 150 150 152 180 Overloaded Moves . | . . . . . . Propulsion Burnouts . | . . . . . . Robots Hopped . | . . . . . . Cave-ins Triggered . | . . . . . . Exploration Rate (%) 26 | 4 27 40 39 43 8 Regions Visited 5 Branch Regions . Pre-discovered Areas . | . . . . . . Known Exits Taken 2 | . 1 . 1 . . Unknown Exits Taken 2 | 1 . 1 . . . Scrap Searched . | . . . . . . Spaces Dug . | . . . . . . Terrain Destroyed 79 | . . 68 7 . 4 Melee . | . . . . . . Projectile 11 | . . . 7 . 4 AOE 68 | . . 68 . . . Terrain Rammed . | . . . . . . Walls Destroyed . | . . . . . . Machines Disabled . | . . . . . . Actions | -11 -10 -9 -8 -8 -7 --------- Run | Scr Mat Mat Mat Gar Fac Total 3503 | 70 164 995 901 708 665 Wait 1028 | . . 407 404 19 198 Move 1910 | 53 158 453 411 466 369 Hop . | . . . . . . Pick Up 62 | 11 2 18 10 14 7 Fast Attach 22 | 1 1 12 1 4 3 Attach 42 | 5 . 14 3 9 11 Detach 3 | . . 2 . . 1 Swap 27 | . 1 8 6 5 7 Drop 45 | . 1 15 11 12 6 Fire 231 | . 1 66 55 55 54 Melee 9 | . . . . . 9 Ram . | . . . . . . Kick . | . . . . . . Crush . | . . . . . . Escape Stasis 10 | . . . . 10 . Rewire 114 | . . . . 114 . Trap . | . . . . . . Miscellaneous . | . . . . . . Route ------- -11/Scrapyard -10/Materials (discovered 3 exits: *Mat x3) -9/Materials -8/Materials (discovered 3 exits: *Fac x2 / Gar) -8/Garrison -7/Factory History --------- Turn | Location | Event 6 | -11/Scrapyard | Discovered new exit (range 15) 68 | -11/Scrapyard | Entered Materials 82 | -10/Materials | Identified exit to Materials 266 | -10/Materials | Entered another Materials area 266 | -9/Materials | Evolved 2 slots: Propulsion x1, Utility x1 330 | -9/Materials | Build established: Mutant 649 | -9/Materials | Core integrity fell below 50% 711 | -9/Materials | Lost 10 parts (2p3n5w) 794 | -9/Materials | Lost 3 parts (1n2u) 1082 | -9/Materials | Build established: Scavenger-Mutant 1425 | -9/Materials | Discovered new exit (range 16) 1507 | -9/Materials | Entered another Materials area 1507 | -8/Materials | Evolved 2 slots: Propulsion x1, Utility x1 1738 | -8/Materials | Garrison activated, responded to threat 1755 | -8/Materials | Build established: Mutant 2299 | -8/Materials | Discovered new exit (range 10) 2535 | -8/Materials | Destroyed 7 combat bots 2563 | -8/Materials | Discovered new exit (range 16) 2631 | -8/Materials | Identified exit to Garrison 2631 | -8/Materials | Entered Garrison 2637 | -8/Garrison | Installed Relay Interface Framework 2664 | -8/Garrison | Triggered checkpoint 2692 | -8/Garrison | Triggered checkpoint 2754 | -8/Garrison | Spotted B-75 Beast 2754 | -8/Garrison | Spotted B-75 Beast 2832 | -8/Garrison | Triggered checkpoint 2867 | -8/Garrison | Core integrity fell below 50% 2898 | -8/Garrison | Lost 3 parts (1p2w) 3012 | -8/Garrison | Lost 4 parts (1p2n1u) 3316 | -8/Garrison | Triggered checkpoint 3342 | -8/Garrison | Garrison Relay disabled 3418 | -8/Garrison | Triggered checkpoint 3429 | -8/Garrison | Build established: Commander-Mutant 3471 | -8/Garrison | Garrison Relay disabled 3580 | -8/Garrison | Discovered new exit (range 14) 3619 | -8/Garrison | Entered Factory 3619 | -7/Factory | Accompanied by 4 allies 3619 | -7/Factory | Evolved 2 slots: Utility x2 4214 | -7/Factory | Build established: Mutant 4419 | -7/Factory | First assault squad dispatched 4500 | -7/Factory | Core integrity fell below 50% 4538 | -7/Factory | Core integrity fell below 20% 4552 | -7/Factory | Destroyed by S-27 Virus with Autogun Last Messages --------------- 04507_ G-50 Soldier knocked back. 04511_ Destroyed Com. Battery. 04515_ Segregator destroyed. 04515_ Slug penetrates Wall. 04515_ S-27 Virus knocked back. 04518_ G-50 Soldier destroyed. 04523_ B-48 Gladiator suffers critical hit. 04523_ B-48 Gladiator destroyed. 04525_ Relay Coupler [Sentry] destroyed. 04530_ Hvy. Ion Cannon destroyed. 04531_ G-50 Soldier knocked back. 04533_ Slug penetrates Wall. 04535_ S-27 Virus suffers critical hit. 04535_ S-27 Virus destroyed. 04537_ S-27 Virus knocked back. 04539_ Gauss Cannon destroyed. 04540_ Slug penetrates L-41 Fighter. 04548_ Gauss Rifle destroyed. 04550_ Acquired Lgt. Nuclear Core. 04552_ Lgt. Nuclear Core severed. Map ----- +----------------------------------------------------+ | ?????????????????????????????????????????????????? | | ?????????????????????????????????????????????????? | | ?????????????????????????????????????????????????? | | ?????????????????????????????????????????????????? | | ?????????????????????? ??????????????????????????? | | ????????????????????? ????????????????????????? | | ????????????????????? "????????????????????????? | | ????????????????????? """??? ####?????????????? | | ??##########????????# """??? ???????????? | | ??# !#????????# ?? ???????????? | | ??# """" #????????# """"? ??????????? | | ??# """" #????????# """" ??????????? | | ??# """" #????????# """" #??????????? | | ??# """" = #????????# #??????????? | | ??# """" #??####### """" #??????????? | | ### """" #??# """" #??????????? | | ## """" #??# % % """" #??????????? | | ## #??# % #??????????? | | ##+###+####### "" #??????????? | | # "G #??????????? | | # g" +??????????? | | + l *%[ #??????????? | | # ui%= #??????????? | | # ###################gg######### #??????????? | | # #?????????????????#%sl #??? #??????????? | | # #?????????????????#%@s #???????????????? | | # #?????????????????#!!* #???????????????? | | # #?????????????????#!= #???????????????? | | ## #?????????????????###########???????????????? | | ? ???????????????????????????????????????????? | | ? ???????????????????????????????????????????? | | ???????????????????????????????????????????? | | ? ??????????????????????????????????????????? | | ? #??????????????????????????????????????????? | | ?### ##??????????????????????????????????????????? | | ???? #???????????????????????????????????????????? | | ???? ????????????????????????????????????????????? | | ?????????????????????????????????????????????????? | | ?????????????????????????????????????????????????? | | ?????????????????????????????????????????????????? | | ?????????????????????????????????????????????????? | | ?????????????????????????????????????????????????? | | ?????????????????????????????????????????????????? | | ?????????????????????????????????????????????????? | | ?????????????????????????????????????????????????? | | ?????????????????????????????????????????????????? | | ?????????????????????????????????????????????????? | | ?????????????????????????????????????????????????? | | ?????????????????????????????????????????????????? | | ?????????????????????????????????????????????????? | +----------------------------------------------------+ Best States ------------- Heat Dissipation 61 Energy Generation 14 Energy Capacity 265 Matter Stores 300 Matter Capacity 300 Sight Range 16 Robot Scan Range 13 Terrain Scan Density 10 Jamming Range 8 Evasion (%) 50 Recoil Reduction 2 Offensive Hacking 10 Defensive Hacking 10 Relay Coupler Types 77 Relay Coupler Value 3 Item Schematics ----------------- None Robot Schematics ------------------ None Fabricated ------------ Nothing Alien Tech Used ----------------- None Achievements -------------- Error 47 Challenges ------------ None Game ------ Seed ShockCloakingPick Manual? 0 Play Time 00:42:32 Cumulative 19.6 hours Start 2021.06.19 @ 13:41:11 End 2021.06.19 @ 14:23:34 Sessions 1 Manual Loads 0 Difficulty Rogue Special Mode None Game No. 24 Rogue 24 Adventurer 0 Explorer 0 Win Type - Total 0 Types 0/0/0/0/0/0/0/0/0 Lore% 16 Gallery% 37 Achievement% 23 Wizard Run 0 Options --------- ASCII 1 Keyboard 0 Movement Mouse Keybinds 0 Fullscreen 2 Font 18/X11 Map View 76x50 Tactical HUD 1 Map Filters NONE Filters NONE Steam 1 RUN: 1a2b6ca2-89db-4a7b-aa1f-fa8a052d8264